Cogmind - Beta 15 @@@ ROGUE MODE // 2025.08.28 @ 21:47:13 Player: Finestep Result: Destroyed by AP7-3 with Heavy Quantum Rifle Performance ------------- Evolutions (7) 3500 Regions Visited (26) 5200 Robots Destroyed (346) 1730 Value Destroyed (14155) 14155 Prototype IDs (45) 900 Alien Tech Used (2) 400 Bonus (4632) 4632 TOTAL SCORE: 30517 Bonus ------- High Alert Combat Kills 379 Follower Combat Kills 2048 Network Hubs Disabled 400 Met Data Miner 300 Met Warlord at Base 500 MAIN.C Attacked Warlord 500 Warlord Defense Kills 776 Built Enhanced Grunts 300 A7 Reached Mainframe 300 Friendly Fire -871 Cogmind --------- Core Integrity 0/1300 Matter 290/300 Energy 99/100 System Corruption 9% Temperature Cool (9) Movement Core (50) Location -3/Protoforge Parts ------- > --- POWER (2) -------- (None) > --- PROPULSION (6) --- (None) > --- UTILITY (10) ----- Experimental Heat Sink > --- WEAPON (3) ------- (None) > --- INVENTORY (5) ---- Subatomic Replicator Core Cannon Sigix Terminator Peak State ------------ > --- POWER ------------ Particle Reactor Graviton Reactor > --- PROPULSION ------- Improved Thunder Leg Improved Thunder Leg Heavy Armored Exoskeleton > --- UTILITY ---------- High-capacity Storage Unit Experimental Sensor Array Experimental Signal Interpreter Experimental Targeting Computer Experimental Targeting Computer Core Analyzer Advanced Kinecellerator Improved Weapon Cycler Improved Utility Shielding Centrium Medium Armor Plating > --- WEAPON ----------- Core Cannon Compact Linear Accelerator > --- INVENTORY -------- Micro Antimatter Reactor Biometal Leg Experimental Heat Sink Advanced Energy Well Improved Transmission Jammer Advanced Reaction Control System Layered Medium Armor Plating Centrium Medium Armor Plating Advanced Focal Shield Experimental EM Shield Transdimensional Reconstructor Core Reset Matrix Compact HERF Cannon Hypervelocity Mass Driver Gamma Bomb Array Micro-nuke Launcher Advanced Datajack PL-3XN's Ring of Power [Rating: 178] Favorites ----------- Power Reinforced Fission Core Engine Heavy Deuterium Engine Power Core Reinforced Fission Core Reactor Particle Reactor Propulsion Armored Leg Treads Light Treads Leg Armored Leg Wheel Compact Wheel Utility Large Storage Unit Device Experimental Sensor Array Storage Large Storage Unit Processor Experimental Targeting Computer Hackware Makeshift Hacking Suite Protection Centrium Medium Armor Plating Weapon Improved Heavy Machine Gun Energy Gun Medium Laser Energy Cannon Cooled Plasma Cannon Ballistic Gun Improved Heavy Machine Gun Ballistic Cannon Compact Linear Accelerator Launcher Improved Proton Missile Launcher Special Weapon Mining Laser Impact Weapon Impact Mace Slashing Weapon Mining Claw Special Melee Weapon Advanced Datajack Build | -11 -10 -10 -10 -9 -8 -7 -7 -7 -7 -6 -6 -5 -5 -5 -5 -5 -5 -5 -4 -4 -4 -4 -3 -3 -3 -3 ------- Run | Yrd Mat Min Exi Min Mat Fac Low Low Dat Pro Fac Fac Was Fac Ext Cet Arc Hub Fac Upp Upp War Pro Res Qua Frg Slots Evolved 14 | . . . . . 4 2 . . . . 2 2 . . . . . . 2 . . . . 2 . . Power 1 | . . . . . . . . . . . 1 . . . . . . . . . . . . . . . Propulsion 4 | . . . . . 2 1 . . . . . . . . . . . . 1 . . . . . . . Utility 8 | . . . . . 2 1 . . . . 1 1 . . . . . . 1 . . . . 2 . . Weapon 1 | . . . . . . . . . . . . 1 . . . . . . . . . . . . . . Parts Attached 220 | 7 12 8 . . 9 52 1 1 . 3 34 17 3 11 8 2 4 9 9 1 1 4 1 12 9 2 Power 21 | 1 2 1 . . 1 4 . . . 1 4 1 2 1 . . . 1 . . . . . 2 . . Engine 8 | 1 2 . . . 1 3 . . . . 1 . . . . . . . . . . . . . . . Core 5 | . . 1 . . . 1 . . . 1 . 1 . 1 . . . . . . . . . . . . Reactor 8 | . . . . . . . . . . . 3 . 2 . . . . 1 . . . . . 2 . . Propulsion 57 | 2 3 3 . . 1 19 . . . . 10 5 . . 4 . . 3 . . 1 2 . 2 2 . Treads 8 | . . 2 . . . 6 . . . . . . . . . . . . . . . . . . . . Leg 45 | 2 3 1 . . 1 9 . . . . 10 5 . . 4 . . 3 . . 1 2 . 2 2 . Wheel 4 | . . . . . . 4 . . . . . . . . . . . . . . . . . . . . Hover . | . . . . . . . . . . . . . . . . . . . . . . . . . . . Flight . | . . . . . . . . . . . . . . . . . . . . . . . . . . . Utility 90 | 2 3 2 . . 2 16 1 1 . 2 12 9 1 8 3 2 2 4 7 1 . 2 1 5 4 . Device 41 | 1 . . . . . 8 1 . . 2 7 5 1 5 1 . 1 2 2 1 . 1 . . 3 . Storage 10 | 1 1 1 . . . 2 . . . . 2 1 . . . . . 1 . . . . . 1 . . Processor 20 | . 2 . . . 2 2 . 1 . . 1 3 . 1 . . 1 1 3 . . 1 . 2 . . Hackware 4 | . . . . . . . . . . . 1 . . 1 1 . . . 1 . . . . . . . Protection 15 | . . 1 . . . 4 . . . . 1 . . 1 1 2 . . 1 . . . 1 2 1 . Artifact . | . . . . . . . . . . . . . . . . . . . . . . . . . . . Weapon 52 | 2 4 2 . . 5 13 . . . . 8 2 . 2 1 . 2 1 2 . . . . 3 3 2 Energy Gun 4 | . 1 . . . . 2 . . . . . . . . . . . . . . . . . 1 . . Energy Cannon 12 | . . . . . . 4 . . . . 3 1 . . 1 . . 1 . . . . . . 1 1 Ballistic Gun 19 | 2 2 2 . . 2 3 . . . . 4 1 . 1 . . 2 . . . . . . . . . Ballistic Cannon 5 | . . . . . . 1 . . . . . . . . . . . . 1 . . . . 2 1 . Launcher 7 | . . . . . 2 2 . . . . . . . 1 . . . . 1 . . . . . 1 . Special Weapon 1 | . . . . . 1 . . . . . . . . . . . . . . . . . . . . . Impact Weapon 2 | . . . . . . 1 . . . . 1 . . . . . . . . . . . . . . . Slashing Weapon 1 | . 1 . . . . . . . . . . . . . . . . . . . . . . . . . Piercing Weapon . | . . . . . . . . . . . . . . . . . . . . . . . . . . . Special Melee Weapon 1 | . . . . . . . . . . . . . . . . . . . . . . . . . . 1 Unidentified Prototypes 28 | . . . . . . 5 . . . . 5 1 . . . 1 . 6 3 . . 1 . 5 1 . Corrupted Parts 2 | . . . . . . 1 . . . . . . . . . . . 1 . . . . . . . . System Corruption 13 | . . . . . . 8 . . . . . . . . . . . 5 . . . . . . . . Parts Lost 33 | . 1 1 . . 12 2 . . . . 2 1 . . . . . . . . . 2 . . . 12 Power 6 | . 1 . . . 2 1 . . . . . . . . . . . . . . . . . . . 2 Propulsion 9 | . . 1 . . 4 . . . . . . . . . . . . . . . . . . . . 4 Utility 10 | . . . . . 2 1 . . . . 2 . . . . . . . . . . 1 . . . 4 Weapon 8 | . . . . . 4 . . . . . . 1 . . . . . . . . . 1 . . . 2 Highest Loss Streak 11 | . 1 1 . . 11 1 . . . . 2 1 . . . . . . . . . 2 . . . 7 To Critical Strikes 1 | . . . . . . . . . . . . . . . . . . . . . . . . . . 1 Average Backups 13 | 4 12 14 14 15 9 8 9 10 10 10 13 14 15 14 14 14 14 14 13 15 15 14 15 16 18 15 Power . | . 1 1 2 3 1 . 1 1 1 1 . 1 1 1 1 1 1 1 1 1 1 1 1 1 . . Propulsion 1 | 2 4 3 3 3 1 . . . . . 1 1 1 1 1 1 1 1 . . . . 1 1 1 . Utility 6 | . 1 4 5 5 4 4 4 5 5 5 5 6 7 7 7 7 8 8 7 9 9 8 9 7 7 6 Weapon 4 | 1 6 5 4 4 2 3 4 4 4 4 5 5 6 5 5 5 4 3 4 5 5 4 4 5 5 5 Tool/Special . | . . . . . . . . . . . . . . . . . . . . . . . . . . . Unused Backups 52 | . 3 7 . 1 4 9 . . . . 10 2 . 2 . . . 1 . . . 1 . 2 6 4 Power 5 | . . 1 . . 2 . . . . . . . . . . . . . . . . . . . 2 . Propulsion 5 | . 2 . . . . . . . . . 3 . . . . . . . . . . . . . . . Utility 20 | . 1 . . . 2 8 . . . . 2 2 . 1 . . . 1 . . . 1 . 1 1 . Weapon 18 | . . 6 . 1 . 1 . . . . 5 . . 1 . . . . . . . . . 1 1 2 Tool/Special 4 | . . . . . . . . . . . . . . . . . . . . . . . . . 2 2 Average Slot Usage (%) 95 | . 99 99 100 100 73 89 100 99 87 100 99 99 100 99 96 98 99 99 99 100 100 99 100 96 84 74 Engine 2 | . 14 5 . . 4 3 7 7 7 6 3 5 4 . . . . . . . . . . . . . Core 3 | . . 8 14 14 1 2 . . . . . . 4 4 5 5 5 4 5 5 5 5 5 2 . . Reactor 4 | . . . . . . . . . . . 8 4 . 5 5 5 5 5 5 5 5 5 5 5 9 7 Treads 1 | . . 16 . . . 4 . . . . . . . . . . . . . . . . . . . . Leg 26 | . 28 11 28 28 25 19 38 38 38 38 32 29 29 29 29 29 29 29 31 31 31 31 31 24 13 11 Device 11 | . 10 . . . . 14 15 14 15 15 13 13 11 14 10 5 5 4 9 10 10 7 9 13 13 13 Storage 6 | . 14 14 14 14 7 6 7 7 7 7 6 5 5 5 5 5 5 5 5 5 5 5 5 4 4 3 Processor 14 | . 3 10 . . 12 6 7 7 7 7 12 20 23 19 17 17 17 23 21 21 21 21 21 23 20 16 Protection 5 | . . 3 14 14 5 5 7 7 7 7 4 . . . 2 9 10 5 5 5 5 7 5 4 7 7 Energy Cannon 5 | . . . . . . 8 14 15 3 14 10 . . . . . . 8 9 10 10 10 10 8 2 3 Ballistic Gun 8 | . 24 28 28 28 14 4 . . . . 2 15 17 17 16 16 16 7 3 . . . . . . . Ballistic Cannon 2 | . . . . . . . . . . . . . . . . . . . 1 4 4 3 4 4 11 7 Peak Build Rating 178 | 7 10 12 12 13 20 56 55 56 55 57 81 90 90 94 97 99 104 111 131 130 132 140 139 174 178 174 Average Rating 87 | 5 7 10 11 12 14 39 54 54 48 55 72 85 85 91 92 98 100 98 126 129 131 132 138 156 169 149 On Entrance 77 | . 7 8 11 12 13 4 55 50 55 51 57 78 84 90 94 93 99 99 111 128 128 132 140 139 173 168 Naked Turns 1 | . . . . . . . . . . . . . . . . . . . . . . . . . . 1 Heaviest Build 128 | 14 29 30 30 30 34 58 58 58 58 59 94 68 66 78 96 104 94 91 107 107 107 113 107 128 114 110 Greatest Support 160 | 20 20 40 20 20 45 94 94 94 94 94 94 86 82 82 93 93 93 120 136 136 145 160 160 160 150 146 Greatest Overweight (x) 7 | 2 1 1 1 1 7 3 . . . . 1 . . . 1 1 1 . . . . . . . 1 1 Average Overweight (x) . | . . . 1 1 . . . . . . . . . . . . . . . . . . . . . . Largest Inventory Capacity 25 | 8 15 15 15 15 15 25 10 10 10 10 15 15 15 15 15 15 15 15 15 15 15 15 15 20 20 20 Average Capacity 14 | 7 13 15 15 15 12 10 10 10 10 10 13 15 15 15 15 15 15 15 15 15 15 15 15 17 20 18 Most Carried 20 | 8 15 15 15 15 14 11 10 10 10 10 15 15 15 15 15 15 15 15 15 15 15 15 15 20 20 20 Average Carried 13 | 4 12 14 14 15 9 8 9 10 10 9 13 14 15 14 14 14 14 14 13 14 15 14 15 16 19 17 Final Capacity 20 | 8 15 15 15 15 5 10 10 10 10 10 15 15 15 15 15 15 15 15 15 15 15 15 15 20 20 20 Final Carried 20 | 8 15 13 15 15 5 9 10 10 10 10 15 15 15 15 14 15 14 14 15 15 15 15 15 20 20 20 Class Distribution -------------------- 24% | Mutant 23% | Scavenger-Gunner 15% | Gunner 12% | Scavenger-Mutant 11% | Skirmisher 8% | Commander-Gunner Dominant Class ---------------- Mutant | -10/Materials Mutant | -10/Mines Scavenger-Mutant | -10/Exiles Scavenger-Mutant | -9/Mines Scavenger-Mutant | -8/Materials Mutant | -7/Factory Mutant | -7/Lower Caves Mutant | -7/Lower Caves Mutant | -7/Data Miner Mutant | -6/Proximity Caves Skirmisher | -6/Factory Gunner | -5/Factory Scavenger-Gunner | -5/Waste Gunner | -5/Factory Commander-Gunner | -5/Extension Commander-Tank | -5/Cetus Commander-Gunner | -5/Archives Commander-Gunner | -5/Hub_04(d) Scavenger-Gunner | -4/Factory Scavenger-Gunner | -4/Upper Caves Scavenger-Gunner | -4/Upper Caves Scavenger-Gunner | -4/Warlord Scavenger-Gunner | -3/Proximity Caves Scavenger-Gunner | -3/Research Gunner | -3/Quarantine Gunner | -3/Protoforge Resources | -11 -10 -10 -10 -9 -8 -7 -7 -7 -7 -6 -6 -5 -5 -5 -5 -5 -5 -5 -4 -4 -4 -4 -3 -3 -3 -3 ----------- Run | Yrd Mat Min Exi Min Mat Fac Low Low Dat Pro Fac Fac Was Fac Ext Cet Arc Hub Fac Upp Upp War Pro Res Qua Frg Matter Collected 10487 | 290 315 385 10 2 . 1552 65 130 . 138 785 887 72 530 572 65 549 334 605 136 176 243 185 388 1212 861 Remotely . | . . . . . . . . . . . . . . . . . . . . . . . . . . . Salvage Created 17137 | 127 695 472 . 24 209 2257 110 237 . 155 2367 1045 . 719 989 98 353 648 1784 109 304 365 628 898 1671 873 Parts 748 | 8 46 25 . 6 15 107 3 5 . 4 92 40 . 28 38 6 22 15 63 8 17 10 26 29 99 36 Haulers Intercepted 21 | . 2 . . . . 6 . . . . 6 1 . 3 . . . . 3 . . . . . . . Recyclers Shooed 20 | . 2 1 . . . 7 . . . . 6 1 . . 2 . . . . . . . . 1 . . Parts Field Recycled 2 | . . . . . . 2 . . . . . . . . . . . . . . . . . . . . Retrieved Matter 10 | . . . . . . 10 . . . . . . . . . . . . . . . . . . . . Parts Self-Destructed 26 | . . . . . . . 2 4 . 2 . . . . . . . . . 6 6 . 6 . . . Prevented 24 | . . . . . . . . . . . . . . . . . . . . . 4 . 20 . . . Kills | -11 -10 -10 -10 -9 -8 -7 -7 -7 -7 -6 -6 -5 -5 -5 -5 -5 -5 -5 -4 -4 -4 -4 -3 -3 -3 -3 ------- Run | Yrd Mat Min Exi Min Mat Fac Low Low Dat Pro Fac Fac Was Fac Ext Cet Arc Hub Fac Upp Upp War Pro Res Qua Frg Combat Hostiles Destroyed 210 | . 15 8 . . 8 20 4 3 . 3 24 9 . 7 12 1 1 5 20 4 8 6 9 9 19 15 Melee 2 | . . . . . . 2 . . . . . . . . . . . . . . . . . . . . Guns 62 | . 15 8 . . . 6 . . . . . 9 . 7 12 . 1 2 2 . . . . . . . Cannons 81 | . . . . . . 8 . . . . 20 . . . . . . 3 8 1 3 . 2 8 16 12 AOE 41 | . . . . . 7 2 4 3 . 3 2 . . . . 1 . . 4 3 5 6 1 . . . Classes Destroyed 19 | 3 6 2 . . 1 2 . . . . . . . . . . . 1 1 . . 1 1 . 1 . Worker 23 | 1 1 2 . . . 4 . . . . 4 1 . . 1 . . 4 4 . . . . 1 . . Builder 11 | . . 1 . . . 3 . . . . 3 1 . . . . . . 1 . . . . 1 1 . Tunneler 5 | 1 1 . . 1 . . . . . . 1 . . 1 . . . . . . . . . . . . Hauler 21 | . 2 . . . . 6 . . . . 6 1 . 3 . . . . 3 . . . . . . . Recycler 30 | 1 . 1 . . 1 11 . . . . 3 4 . . 2 . . 1 . . . . . 2 4 . Mechanic 3 | . 1 . . . 1 . . . . . . 1 . . . . . . . . . . . . . . Operator 19 | . 1 . . . 1 1 . . . . 3 . . 1 . . 9 . 1 . . . . . 2 . Drone 2 | . . . . . . . . . . . . . . . . . . . . . . . 2 . . . Watcher 21 | . 1 . . . 1 4 . . . . 3 2 . 1 1 1 . . 1 . . . . . 3 3 Swarmer 43 | . 6 2 . . 3 6 . 3 . 3 5 4 . . . . . . . 4 6 1 . . . . Grunt 72 | . 9 4 . . 4 6 3 . . . 8 . . 3 6 . . 1 9 . 1 4 7 . 3 4 Duelist 2 | . . . . . 1 . 1 . . . . . . . . . . . . . . . . . . . Protector 1 | . . . . . . . . . . . . . . . . . . 1 . . . . . . . . Sentry 19 | . . 2 . . . 3 . . . . 1 1 . 1 4 . 1 . 2 . 1 . . 2 . 1 Specialist 1 | . . . . . . . . . . . . . . . . . . . . . . 1 . . . . Hunter 13 | . . . . . . 1 . . . . 3 2 . . 2 . . 1 4 . . . . . . . Programmer 48 | . . . . . . 4 . . . . 7 2 . 3 . . . . 4 . . . . 7 15 6 Heavy 1 | . . . . . . . . . . . . . . . . . . . 1 . . . . . . . Cetus Guard 1 | . . . . . . . . . . . . . . . . 1 . . . . . . . . . . Lightning 2 | . . . . . . . . . . . . . . . . . . 2 . . . . . . . . Hotshot 1 | . . . . . . . . . . . . . . . . . . . . . . . . . . 1 Immortal 3 | . . . . . . . . . . . . . . . . . . . . . . . . . . 3 Alpha 7 1 | . . . . . . . . . . . . . . . . . . . . . . . . . 1 . Decomposer 1 | . . . . . . . . 1 . . . . . . . . . . . . . . . . . . Thug 2 | . . . . . . . . . . . . . . . . . . 2 . . . . . . . . Commander 1 | . . . . . . . . . . . . . . . . . . . . . 1 . . . . . Best Kill Streak 11 | 1 4 2 . 1 11 3 4 3 . 3 6 5 . 3 2 2 2 5 5 4 5 2 4 3 3 5 Combat Bots Only 8 | . 3 2 . . 8 3 4 3 . 3 4 4 . 3 2 1 1 3 4 4 5 2 4 3 3 5 Max Kills in Single Turn 5 | 1 2 1 . 1 5 3 2 3 . 2 3 1 . 1 1 2 1 5 5 2 3 1 1 1 1 2 Gunslinging 1 | . . . . . . 1 . . . . . . . . . . . . . . . . . . . . Exploded 4 | . . . . . 3 2 2 3 . 2 2 . . . . 1 . . 4 2 3 1 1 . . . Melee 1 | . . . . . . 1 . . . . . . . . . . . . . . . . . . . . Uniques/NPCs Destroyed . | . . . . . . . . . . . . . . . . . . . . . . . . . . . Combat | -11 -10 -10 -10 -9 -8 -7 -7 -7 -7 -6 -6 -5 -5 -5 -5 -5 -5 -5 -4 -4 -4 -4 -3 -3 -3 -3 -------- Run | Yrd Mat Min Exi Min Mat Fac Low Low Dat Pro Fac Fac Was Fac Ext Cet Arc Hub Fac Upp Upp War Pro Res Qua Frg Hostile Shots Fired 1464 | . 60 62 . . 116 251 . 1 . 4 283 65 . 9 54 4 2 15 85 5 16 40 20 54 155 163 Missed 464 | . 19 17 . . 46 87 . . . . 90 18 . 7 13 1 1 2 33 1 5 11 6 13 58 36 Hits 1000 | . 41 45 . . 70 164 . 1 . 4 193 47 . 2 41 3 1 13 52 4 11 29 14 41 97 127 Melee 21 | . . . . . 4 . . . . . . . . . . . . . . . . 2 . . . 15 Projectile 979 | . 41 45 . . 66 164 . 1 . 4 193 47 . 2 41 3 1 13 52 4 11 27 14 41 97 112 AOE 1 | . . . . . . . . . . . . . . . . . . . . . . . . . . 1 Critical Strikes 44 | . 4 . . . 3 3 . . . . 4 . . . 2 . . 1 1 . . 1 . 2 9 14 Part Disruptions 9 | . . . . . . . . . . . . . . 1 . . . . . . . . . 3 3 2 Damage Taken 15915 | . 484 540 . . 1134 1644 . 9 . 42 2265 1085 . 195 433 39 13 502 975 61 101 696 326 374 1055 3942 Core 2599 | . 53 128 . . 247 273 . 9 . 4 228 62 . 8 41 . . 49 181 . . 59 19 37 64 1137 Absorbed by Shields 1384 | . . . . . . 48 . . . . 377 . . 25 448 40 14 . 132 . 105 128 . 67 . . Redirected to Shielding 108 | . . . . . . . . . . . . . . . . . . . . . . . . . 21 87 Ignored by Resistances 2402 | . . . . . . . . 4 . 16 83 . . . . . . . 165 . . . . 534 1236 364 Regen/Repaired (Parts) 615 | . . . . . . 116 . . . . 100 11 115 85 53 . 9 49 . . . 77 . . . . Core Remaining (%) 67 | 100 . . . 27 55 . . . . 59 73 . . . . . . 84 . . . . 77 . . . Volleys Fired 1048 | 5 68 53 . 1 15 144 19 28 . 18 142 44 . 28 44 4 36 28 60 28 12 33 31 36 89 82 Largest 3 | 2 2 2 . 2 2 2 2 2 . 2 2 3 . 3 3 3 3 3 3 3 3 2 3 3 3 3 Hottest 300 | 40 70 40 . 40 100 130 130 130 . 130 130 45 . 80 65 80 70 85 125 125 125 80 125 125 300 300 Shots Fired 2181 | 10 136 106 . 2 18 267 34 55 . 34 275 132 . 82 133 8 88 84 163 60 23 42 53 96 152 128 Gun 926 | 10 136 106 . 2 9 124 . . . . 22 132 . 80 131 6 88 36 43 . . . . . 1 . Cannon 1188 | . . . . . . 141 30 54 . 32 253 . . . 2 . . 48 114 58 19 25 40 96 148 128 Launcher 66 | . . . . . 8 2 4 1 . 2 . . . 2 . 2 . . 6 2 4 17 13 . 3 . Special 1 | . . . . . 1 . . . . . . . . . . . . . . . . . . . . . Kinetic 1127 | 10 112 106 . 2 9 116 . . . . 22 132 . 80 131 6 88 36 55 6 3 . 4 24 110 75 Thermal 941 | . 24 . . . 1 128 30 54 . 32 253 . . . 2 . . 48 102 52 16 25 36 72 39 27 Explosive 21 | . . . . . 8 2 4 1 . 2 . . . . . . . . . 2 2 . . . . . Electromagnetic 92 | . . . . . . 21 . . . . . . . 2 . 2 . . 6 . 2 17 13 . 3 26 Robot Hit Streak 50 | 5 7 18 . 1 11 20 . 7 . 10 25 9 . 11 12 8 9 14 29 17 20 11 8 20 50 24 Robot Miss Streak 7 | 2 5 7 . . 2 6 . 1 . . 7 7 . 2 3 1 5 2 2 . 1 2 1 1 2 3 Penetration Max 2 | . . . . . . 1 . . . . . . . . . . 1 . . . . . . . 1 2 Secondary Targets 8 | . . . . . . 2 . . . . . 2 . . 4 . . . . . . . . . . . Max Gunslinging Chain 1 | . . . . . . 1 . . . . . 1 . . 1 . . . . . . . . . . . Shots Hit Robots 1139 | 7 85 68 . 1 10 150 . 7 . 3 143 72 . 47 92 5 49 30 77 7 12 20 9 62 100 83 Core Hits 658 | 4 42 34 . 1 24 58 8 5 . 6 63 34 . 21 45 10 28 24 62 7 23 45 8 25 45 36 Critical Kills 21 | . 1 . . . . 1 . 1 . . 2 1 . . . . . 1 2 . . . . . 5 7 Critical Parts Destroyed 11 | . . 1 . . . 3 . . . . . . . . 1 . . . . . . . . . 3 3 Critical Strikes 45 | . 1 1 . . . 4 . 1 . . 2 1 . . 1 . . 1 2 . . . . 5 13 13 Meltdown 7 | . . . . . . . . 1 . . 2 . . . . . . . 2 . . . . . 1 1 Destroy 25 | . 1 1 . . . 2 . . . . . . . . 1 . . 1 . . . . . . 9 10 Blast 9 | . . . . . . . . . . . . . . . . . . . . . . . . 5 3 1 Corrupt 1 | . . . . . . . . . . . . . . . . . . . . . . . . . . 1 Smash 3 | . . . . . . 2 . . . . . 1 . . . . . . . . . . . . . . Melee Attacks 26 | . 1 . . . . 16 . . . . 2 7 . . . . . . . . . . . . . . Impact 25 | . . . . . . 16 . . . . 2 7 . . . . . . . . . . . . . . Slashing 1 | . 1 . . . . . . . . . . . . . . . . . . . . . . . . . Piercing . | . . . . . . . . . . . . . . . . . . . . . . . . . . . Sneak Attacks 4 | . . . . . . 1 . . . . 1 2 . . . . . . . . . . . . . . Combat Hostiles . | . . . . . . . . . . . . . . . . . . . . . . . . . . . Follow-up Attacks . | . . . . . . . . . . . . . . . . . . . . . . . . . . . Damage Inflicted 41840 | 81 883 566 . 16 1177 4088 374 381 . 312 5048 1767 . 1207 2203 563 1318 1528 4509 453 905 2230 853 2356 4444 4578 Guns 10451 | 81 883 552 . 16 53 1610 . . . . 159 1541 . 1196 2160 112 1318 278 457 . . . . . 35 . Cannons 20370 | . . . . . . 1711 . 191 . 110 4225 . . . 33 . . 432 2078 229 320 365 65 2356 4083 4172 Explosions 10109 | . . . . . 1122 262 374 190 . 202 526 . . 11 . 451 . 818 1974 224 585 1865 788 . 326 391 Melee 830 | . . . . . . 505 . . . . 99 226 . . . . . . . . . . . . . . Ramming 80 | . . 14 . . 2 . . . . . 39 . . . 10 . . . . . . . . . . 15 Kinetic 15562 | 81 722 552 . 16 53 1400 . . . . 159 1541 . 1196 2160 112 1318 278 685 70 73 . . 577 2752 1817 Thermal 15219 | . 161 . . . . 1633 . 191 . 110 4225 . . . 33 276 . 432 1850 159 325 1053 65 1779 1366 1561 Explosive 4604 | . . . . . 1122 204 374 190 . 202 526 . . . . . . . 1062 224 309 . . . . 391 Electromagnetic 5545 | . . . . . . 346 . . . . . . . 11 . 175 . 818 912 . 198 1177 788 . 326 794 Impact 830 | . . . . . . 505 . . . . 99 226 . . . . . . . . . . . . . . Slashing . | . . . . . . . . . . . . . . . . . . . . . . . . . . . Piercing . | . . . . . . . . . . . . . . . . . . . . . . . . . . . Highest Corruption 12 | . . . . . . 10 1 1 1 1 12 2 2 2 1 1 1 7 1 1 1 3 3 2 2 9 Average Corruption 3 | . . . . . . 6 1 1 1 1 7 1 2 1 1 1 1 3 1 1 1 1 3 1 1 3 Corruption Purged 23 | . . . . . . 10 . . . 1 5 . . 2 . . 1 . . . . . . . 4 . Corruption Blocked . | . . . . . . . . . . . . . . . . . . . . . . . . . . . Effects 221 | . . . . . . 49 3 2 . 2 58 4 7 10 11 2 . 1 3 8 8 1 13 1 17 21 Message Errors 52 | . . . . . . 11 . 1 . . 13 2 2 5 3 . . . 1 3 2 . 4 . 3 2 Matter Fused 54 | . . . . . . 12 2 . . . 15 . 3 2 3 . . 1 1 1 2 1 1 . 3 7 Heat Flow Errors 22 | . . . . . . 6 1 . . . 6 . . . . 1 . . . 1 . . 3 . 1 3 Energy Discharges 23 | . . . . . . 6 . . . 1 5 . . 1 1 . . . . 1 2 . 1 . 4 1 Parts Rejected 4 | . . . . . . 1 . . . . 2 . . . . . . . . . . . . . . 1 Parts Fused 3 | . . . . . . . . . . . 1 . . . . 1 . . . . . . . . 1 . Data Loss (minor) 29 | . . . . . . 8 . . . 1 7 1 2 . 1 . . . . 1 1 . 1 . 3 3 Data Loss (major) 9 | . . . . . . . . . . . 2 . . . 2 . . . . 1 1 . 1 . . 2 Misfires 13 | . . . . . . 2 . . . . 4 . . 2 1 . . . 1 . . . 2 . . 1 Alerts 8 | . . . . . . 1 . 1 . . 3 1 . . . . . . . . . . . 1 . 1 Weapon Failures 4 | . . . . . . 2 . . . . . . . . . . . . . . . . . . 2 . Overload Shots 2 | . . . . . . . . . . . . . . . . . . . . . . . . . 1 1 Overflow Damage 1226 | . . . . . 25 342 . 25 . . 278 . . . . . . 34 119 42 . 44 . 71 197 49 Projectiles 797 | . . . . . . 136 . 25 . . 183 . . . . . . 5 90 41 . . . 71 197 49 Explosions 140 | . . . . . 25 . . . . . 12 . . . . . . 29 29 1 . 44 . . . . Melee 289 | . . . . . . 206 . . . . 83 . . . . . . . . . . . . . . . Knockbacks 51 | . . 1 . . . 6 . . . . . . . . . . . . 1 . . . . 4 17 22 Impact 5 | . . 1 . . . 4 . . . . . . . . . . . . . . . . . . . . Kinetic 43 | . . . . . . 2 . . . . . . . . . . . . 1 . . . . 4 17 19 Secondary 3 | . . . . . . . . . . . . . . . . . . . . . . . . . . 3 Self-Inflicted Damage 581 | . . . . . 103 . . . . 9 . 117 . . . . . 193 . . . . 19 . 6 134 Shots 14 | . . . . . 5 . . . . 1 . 2 . . . . . 2 . . . . 2 . 1 1 Rammed 2 | . . 1 . . 1 . . . . . . . . . . . . . . . . . . . . . Targets Rammed 8 | . . 1 . . 1 . . . . . 3 . . . 2 . . . . . . . . . . 1 Kicked 6 | . . . . . . . . . . . 3 . . . 2 . . . . . . . . . . 1 Crushed . | . . . . . . . . . . . . . . . . . . . . . . . . . . . Highest Temperature 402 | . 199 26 . 10 54 259 191 126 . 84 263 3 . 84 135 162 99 208 207 132 187 74 218 364 234 402 Average Temperature 52 | . 39 8 . 7 26 48 41 39 . 31 86 3 . 11 38 96 32 63 56 30 58 19 46 96 36 55 Received Heat Transfer 1941 | . 240 180 . . 378 264 . . . . 252 . . 4 110 4 . 27 72 . 13 61 30 21 9 276 Effects 4 | . . . . . . . . . . . . . . . . . . . . . . . 3 . . 1 Shutdowns 1 | . . . . . . . . . . . . . . . . . . . . . . . . . . 1 Interference 3 | . . . . . . . . . . . . . . . . . . . . . . . 3 . . . Siege Activations . | . . . . . . . . . . . . . . . . . . . . . . . . . . . Martial Activations . | . . . . . . . . . . . . . . . . . . . . . . . . . . . Shielding Activations . | . . . . . . . . . . . . . . . . . . . . . . . . . . . Robots Disrupted 1 | . . . . . . . . . . . . . . . . 1 . . . . . . . . . . Combat Hostiles 1 | . . . . . . . . . . . . . . . . 1 . . . . . . . . . . Robots Corrupted 21 | . . . . . . 4 . . . . 1 . . . . . . . 6 . . . 6 . 2 2 Combat Hostiles 17 | . . . . . . 2 . . . . . . . . . . . . 5 . . . 6 . 2 2 Parts Fried 41 | . . . . . . 7 . . . . 1 . . . . . . 5 9 . . . 8 . 7 4 Impact Corruptions 13 | . . . . . . 9 . . . . 3 . . . . . . . . . . . . . . 1 Robots Melted 8 | . . . . . . . . 1 . . 2 . . . . . . . 2 . . . . 1 1 1 Combat Hostiles 7 | . . . . . . . . 1 . . 2 . . . . . . . 1 . . . . 1 1 1 Parts Melted 40 | . . . . . . 3 . . . . 23 . . . . . . . 4 . . 1 1 5 1 2 Heat Transferred 19099 | . 481 . . . . 2122 . 259 . 148 5802 . . . 50 150 . 700 2750 250 450 1150 100 2450 1737 500 Parts Sabotaged . | . . . . . . . . . . . . . . . . . . . . . . . . . . . Parts Stolen . | . . . . . . . . . . . . . . . . . . . . . . . . . . . Parts Stripped . | . . . . . . . . . . . . . . . . . . . . . . . . . . . Power Chain Reactions 13 | . . . . . . 1 . . . . . . . . . 1 . 1 . . 1 9 . . . . Alert | -11 -10 -10 -10 -9 -8 -7 -7 -7 -7 -6 -6 -5 -5 -5 -5 -5 -5 -5 -4 -4 -4 -4 -3 -3 -3 -3 ------- Run | Yrd Mat Min Exi Min Mat Fac Low Low Dat Pro Fac Fac Was Fac Ext Cet Arc Hub Fac Upp Upp War Pro Res Qua Frg Maximum Alert Level 3 | . . . . . . 1 . . . . 2 1 . 2 3 2 1 3 2 . . . . . 1 1 Low Security (%) 61 | 100 100 100 . 100 100 71 . . . . 73 86 100 9 . . 20 2 15 . . . . 100 75 67 Level 1 25 | . . . . . . 28 . . . . 8 13 . 29 53 95 79 69 59 . . . . . 24 32 Level 2 12 | . . . . . . . . . . . 18 . . 60 45 4 . 16 24 . . . . . . . Level 3 . | . . . . . . . . . . . . . . . 1 . . 12 . . . . . . . . Level 4 . | . . . . . . . . . . . . . . . . . . . . . . . . . . . Level 5 . | . . . . . . . . . . . . . . . . . . . . . . . . . . . High Security . | . . . . . . . . . . . . . . . . . . . . . . . . . . . Max Security . | . . . . . . . . . . . . . . . . . . . . . . . . . . . Peak Influence 1013 | 5 159 74 . 5 124 356 . . . . 496 240 79 571 711 406 275 1013 491 . . . . 125 276 325 Initial 491 | . 3 19 . . . 56 . . . . . 238 79 . 210 248 98 53 491 . . . . 61 56 148 Average 176 | 1 57 20 . . 33 118 . . . . 174 155 19 392 411 323 226 399 313 . . . . 29 114 116 Influence Increases 11310 | 15 537 334 . 5 304 890 90 80 . 75 973 428 . 1351 1184 207 330 1428 703 95 181 180 200 337 697 686 Destroy 0b10 Robot/C 5140 | . 300 220 . . 160 400 80 60 . 60 480 180 . 540 520 80 80 220 400 80 160 120 140 180 380 300 Destroy 0b10 Robot/NC 755 | 15 35 20 . 5 20 145 . 10 . 5 115 50 . 60 30 5 45 40 55 5 . . 10 20 50 15 Destroy Leader 1018 | . 76 30 . . 12 130 10 10 . 10 126 36 . 156 52 . . 50 88 10 10 . 20 60 66 66 Allied During Kill 1594 | . . 4 . . . . . . . . . . . 558 536 85 125 275 . . 11 . . . . . Successful Hack 180 | . 19 . . . . 17 . . . . 24 21 . 7 5 9 . . 24 . . . . . . 54 Select Force Hacks 60 | . 60 . . . . . . . . . . . . . . . . . . . . . . . . . Disable Machine 780 | . 15 15 . . 15 45 . . . . 105 60 . . 15 . 60 225 30 . . . . 30 120 45 Anti-Garrison Action 200 | . . . . . . . . . . . . . . . . . . 200 . . . . . . . . Destroy Structure 1088 | . 2 . . . 37 63 . . . . 78 66 . 30 26 28 20 418 76 . . . . 32 66 146 Partial Spotted 30 | . . . . . . . . . . . . 15 . . . . . . . . . . . . . 15 Lose Combat Pursuer 465 | . 30 45 . . 60 90 . . . . 45 . . . . . . . 30 . . 60 30 15 15 45 Influence Decreases 11066 | 10 491 385 . 5 180 662 368 154 . 75 486 687 228 922 1169 406 421 579 1228 540 133 245 124 328 534 706 Entered New Map 2295 | . 2 32 . . . 68 131 15 . . . 249 149 . 219 196 147 101 512 178 7 81 16 31 45 116 Time Decay 6822 | 10 394 333 . 5 63 489 237 139 . 75 466 428 79 492 510 190 254 238 416 362 126 152 108 297 489 470 Lost Part 309 | . 10 . . . 117 20 . . . . 20 10 . . . . . . . . . 12 . . . 120 Lost Ally 720 | . . 20 . . . . . . . . . . . 280 140 20 20 240 . . . . . . . . Purge Threat 920 | . 85 . . . . 85 . . . . . . . 150 300 . . . 300 . . . . . . . Squads Dispatched 65 | . 5 . . . 2 7 . . . . 14 3 . 5 3 . . 3 5 . . . . 3 7 8 Investigation 11 | . 3 . . . 1 . . . . . 2 . . 1 . . . 1 . . . . . . . 3 Extermination 31 | . . . . . . 6 . . . . 7 1 . 2 . . . 1 1 . . . . 3 7 3 Reinforcement 22 | . 2 . . . . 1 . . . . 5 2 . 2 3 . . 1 4 . . . . . . 2 Assault . | . . . . . . . . . . . . . . . . . . . . . . . . . . . Garrison 1 | . . . . . 1 . . . . . . . . . . . . . . . . . . . . . Intercept . | . . . . . . . . . . . . . . . . . . . . . . . . . . . Searches Triggered . | . . . . . . . . . . . . . . . . . . . . . . . . . . . Data Miner Redirects 3 | . . . . . . . . . . . . . . . . . . . . . . . . 1 . 2 Construction Impeded 4 | . . . . . . . . . . . 2 . . . 1 . . 1 . . . . . . . . Haulers Reinforced 5 | . . . . . . 1 . . . . 1 . . . . . . . 3 . . . . . . . Active Scanning Responses . | . . . . . . . . . . . . . . . . . . . . . . . . . . . Cargo Convoy Interrupts 1 | . . . . . . . . . . . . . . . . . . . . . . . . 1 . . Stealth | -11 -10 -10 -10 -9 -8 -7 -7 -7 -7 -6 -6 -5 -5 -5 -5 -5 -5 -5 -4 -4 -4 -4 -3 -3 -3 -3 --------- Run | Yrd Mat Min Exi Min Mat Fac Low Low Dat Pro Fac Fac Was Fac Ext Cet Arc Hub Fac Upp Upp War Pro Res Qua Frg Distress Signals 13 | . . . . . 1 . . . . . 1 . . 2 . 2 . 1 1 . . 3 . . . 2 Communications Jammed 81 | . . . . . . 15 . . . . 9 . . 20 . . . . 7 . . 21 2 . . 7 Distress Signals 71 | . . . . . . 15 . . . . 6 . . 19 . . . . 3 . . 21 . . . 7 Times Spotted 422 | . 25 14 . . 20 38 3 2 . 3 42 16 . 22 26 5 22 11 21 4 8 43 11 15 24 47 Peak Tracking Total 15 | . 4 3 . . 13 4 4 3 . 3 7 3 . 3 5 5 2 6 5 3 3 9 4 5 4 15 Tactical Retreats 25 | . 2 2 . . 2 5 . . . . 3 . . . . . . . 2 . . 2 2 1 1 3 Traps | -11 -10 -10 -10 -9 -8 -7 -7 -7 -7 -6 -6 -5 -5 -5 -5 -5 -5 -5 -4 -4 -4 -4 -3 -3 -3 -3 ------- Run | Yrd Mat Min Exi Min Mat Fac Low Low Dat Pro Fac Fac Was Fac Ext Cet Arc Hub Fac Upp Upp War Pro Res Qua Frg Traps Triggered 33 | . 1 . . . 1 . . . . . 11 2 . 6 3 . . 1 . . . 2 . . 4 2 Indirectly 9 | . . . . . . . . . . . . . . 4 . . . . . . . 2 . . 3 . Trap Hack Attempts . | . . . . . . . . . . . . . . . . . . . . . . . . . . . Triggered . | . . . . . . . . . . . . . . . . . . . . . . . . . . . Disarmed . | . . . . . . . . . . . . . . . . . . . . . . . . . . . Reprogrammed . | . . . . . . . . . . . . . . . . . . . . . . . . . . . Reused . | . . . . . . . . . . . . . . . . . . . . . . . . . . . Traps Extracted . | . . . . . . . . . . . . . . . . . . . . . . . . . . . Installed 1 | . . 1 . . . . . . . . . . . . . . . . . . . . . . . . Triggered . | . . . . . . . . . . . . . . . . . . . . . . . . . . . Machines | -11 -10 -10 -10 -9 -8 -7 -7 -7 -7 -6 -6 -5 -5 -5 -5 -5 -5 -5 -4 -4 -4 -4 -3 -3 -3 -3 ---------- Run | Yrd Mat Min Exi Min Mat Fac Low Low Dat Pro Fac Fac Was Fac Ext Cet Arc Hub Fac Upp Upp War Pro Res Qua Frg Machines Disabled 53 | . 1 1 . . 1 3 . . . . 7 4 . . 2 . 4 15 2 . . . . 2 8 3 Max in Single Turn 10 | . 1 . . . 1 1 . . . . 1 2 . . 1 . 1 10 2 . . . . 1 1 1 Garrison Access 1 | . . . . . . . . . . . . . . . . . . 1 . . . . . . . . Network Hub 2 | . . . . . . . . . . . . . . . . . . 2 . . . . . . . . Machines Repaired . | . . . . . . . . . . . . . . . . . . . . . . . . . . . Machines Dismantled . | . . . . . . . . . . . . . . . . . . . . . . . . . . . Machines Sabotaged . | . . . . . . . . . . . . . . . . . . . . . . . . . . . Overloaded Fab Kills . | . . . . . . . . . . . . . . . . . . . . . . . . . . . Hacking | -11 -10 -10 -10 -9 -8 -7 -7 -7 -7 -6 -6 -5 -5 -5 -5 -5 -5 -5 -4 -4 -4 -4 -3 -3 -3 -3 --------- Run | Yrd Mat Min Exi Min Mat Fac Low Low Dat Pro Fac Fac Was Fac Ext Cet Arc Hub Fac Upp Upp War Pro Res Qua Frg Machines Accessed 74 | . 8 . 1 . . 9 . . 4 . 10 6 . 3 3 1 . 3 5 . 3 1 . 1 9 7 Terminals 43 | . 6 . . . . 2 . . . . 4 4 . 1 3 1 . 2 5 . . . . 1 7 7 Fabricators 6 | . . . . . . 2 . . . . 2 . . 2 . . . . . . . . . . . . Repair Stations 8 | . . . . . . 3 . . . . 3 2 . . . . . . . . . . . . . . Recycling Units 3 | . 2 . . . . 1 . . . . . . . . . . . . . . . . . . . . Scanalyzers 3 | . . . . . . . . . . . 1 . . . . . . . . . . . . . 2 . Garrison Access 2 | . . . . . . 1 . . . . . . . . . . . 1 . . . . . . . . Total Hacks 210 | . 23 . 4 . . 19 . . 27 . 19 18 . 11 9 1 . 5 26 . 5 1 . 1 17 24 Successful 92 | . 8 . 4 . . 6 . . 27 . 6 6 . 6 4 1 . 1 6 . 5 1 . . 5 6 Failed 117 | . 14 . . . . 13 . . . . 13 12 . 5 5 . . 4 20 . . . . 1 12 18 Catastrophic 30 | . 3 . . . . 2 . . . . 1 3 . . . . . 2 5 . . . . 1 4 9 Database Lockouts 1 | . 1 . . . . . . . . . . . . . . . . . . . . . . . . . Manual 71 | . 16 . . . . 2 . . . . 1 6 . 6 8 1 . 4 9 . . . . . 3 15 Terminals 124 | . 21 . . . . 3 . . . . 8 12 . 5 9 1 . 3 26 . . . . 1 11 24 Fabricators 15 | . . . . . . 5 . . . . 4 . . 6 . . . . . . . . . . . . Repair Stations 17 | . . . . . . 7 . . . . 4 6 . . . . . . . . . . . . . . Recycling Units 3 | . 2 . . . . 1 . . . . . . . . . . . . . . . . . . . . Scanalyzers 9 | . . . . . . . . . . . 3 . . . . . . . . . . . . . 6 . Garrison Access 5 | . . . . . . 3 . . . . . . . . . . . 2 . . . . . . . . Terminal Hacks 66 | . 6 . 4 . . 1 . . 27 . 2 2 . 2 3 1 . . 5 . 5 1 . . 2 5 Record 22 | . 1 . 4 . . . . . 11 . . . . . . . . . . . 3 1 . . 2 . Part Schematic 8 | . . . . . . . . . 8 . . . . . . . . . . . . . . . . . Robot Schematic 5 | . . . . . . . . . 5 . . . . . . . . . . . . . . . . . Robot Analysis 1 | . 1 . . . . . . . . . . . . . . . . . . . . . . . . . Prototype ID Bank 6 | . 1 . . . . . . . 3 . . . . . . . . . . . . . . . . 2 Open Door 3 | . . . . . . . . . . . . . . . . 1 . . . . 2 . . . . . Open DSF 1 | . . . . . . . . . . . 1 . . . . . . . . . . . . . . . Level Access Points 1 | . . . . . . . . . . . . . . . . . . . . . . . . . . 1 Branch Access Points 5 | . 1 . . . . . . . . . 1 1 . 1 . . . . 1 . . . . . . . Alert Level 1 | . . . . . . . . . . . . . . . 1 . . . . . . . . . . . Unreport Threat 7 | . 1 . . . . 1 . . . . . . . 1 2 . . . 2 . . . . . . . Locate Traps 2 | . . . . . . . . . . . . . . . . . . . 1 . . . . . . 1 Transport Status 1 | . . . . . . . . . . . . 1 . . . . . . . . . . . . . . Hauler Manifests 2 | . 1 . . . . . . . . . . . . . . . . . 1 . . . . . . . Zone Layout 1 | . . . . . . . . . . . . . . . . . . . . . . . . . . 1 Fabricator Hacks 5 | . . . . . . 1 . . . . 1 . . 3 . . . . . . . . . . . . Network Status 2 | . . . . . . 1 . . . . . . . 1 . . . . . . . . . . . . Load Schematic 1 | . . . . . . . . . . . . . . 1 . . . . . . . . . . . . Build 2 | . . . . . . . . . . . 1 . . 1 . . . . . . . . . . . . Repair Station Hacks 8 | . . . . . . 2 . . . . 3 3 . . . . . . . . . . . . . . Scan Component 5 | . . . . . . 1 . . . . 2 2 . . . . . . . . . . . . . . Repair 3 | . . . . . . 1 . . . . 1 1 . . . . . . . . . . . . . . Recycling Unit Hacks . | . . . . . . . . . . . . . . . . . . . . . . . . . . . Scanalyzer 3 | . . . . . . . . . . . . . . . . . . . . . . . . . 3 . Insert Component 3 | . . . . . . . . . . . . . . . . . . . . . . . . . 3 . Garrison Access Hacks . | . . . . . . . . . . . . . . . . . . . . . . . . . . . Unauthorized Hacks 10 | . 2 . . . . 2 . . . . . 1 . 1 1 . . 1 1 . . . . . . 1 Terminals 5 | . . . . . . . . . . . . 1 . 1 1 . . . 1 . . . . . . 1 Track 1 | . . . . . . . . . . . . . . . . . . . . . . . . . . 1 Botnet 4 | . . . . . . . . . . . . 1 . 1 1 . . . 1 . . . . . . . Fabricators 1 | . . . . . . 1 . . . . . . . . . . . . . . . . . . . . Haulers 1 | . . . . . . 1 . . . . . . . . . . . . . . . . . . . . Repair Stations . | . . . . . . . . . . . . . . . . . . . . . . . . . . . Recycling Units 3 | . 2 . . . . 1 . . . . . . . . . . . . . . . . . . . . Reject 1 | . . . . . . 1 . . . . . . . . . . . . . . . . . . . . Tunnel 2 | . 2 . . . . . . . . . . . . . . . . . . . . . . . . . Scanalyzers . | . . . . . . . . . . . . . . . . . . . . . . . . . . . Garrison Access 1 | . . . . . . . . . . . . . . . . . . 1 . . . . . . . . Jam 1 | . . . . . . . . . . . . . . . . . . 1 . . . . . . . . Data Cores Recovered 2 | . . . . . . . . . . . 1 . . . . . . . . . . . . . 1 . Used 1 | . . . . . . . . . . . . . . . . . . . . . . . . . 1 . Hacking Detections 60 | . 6 . . . . 8 . . . . 10 6 . 3 3 1 . 3 5 . . . . 1 7 7 Full Trace Events 3 | . . . . . . . . . . . 1 . . 1 . . . . . . . . . . . 1 Feedback Events . | . . . . . . . . . . . . . . . . . . . . . . . . . . . Feedback Blocked . | . . . . . . . . . . . . . . . . . . . . . . . . . . . Robot Schematics Acquired 5 | . . . . . . . . . 5 . . . . . . . . . . . . . . . . . Robots Built 2 | . . . . . . . . . . . . . . 2 . . . . . . . . . . . . Authchips . | . . . . . . . . . . . . . . . . . . . . . . . . . . . Time 134 | . . . . . . . . . . . . . . 134 . . . . . . . . . . . . Total Robot Build Rating 8 | . . . . . . . . . . . . . . 8 . . . . . . . . . . . . Part Schematics Acquired 8 | . . . . . . . . . 8 . . . . . . . . . . . . . . . . . Parts Built 2 | . . . . . . . . . . . 2 . . . . . . . . . . . . . . . Authchips . | . . . . . . . . . . . . . . . . . . . . . . . . . . . Time 128 | . . . . . . . . . . . 128 . . . . . . . . . . . . . . . Total Part Build Rating 16 | . . . . . . . . . . . 16 . . . . . . . . . . . . . . . Parts Repaired 3 | . . . . . . 1 . . . . 1 1 . . . . . . . . . . . . . . Time 218 | . . . . . . 38 . . . . 44 136 . . . . . . . . . . . . . . Parts Recycled . | . . . . . . . . . . . . . . . . . . . . . . . . . . . Recycled Matter . | . . . . . . . . . . . . . . . . . . . . . . . . . . . Retrieved Matter . | . . . . . . . . . . . . . . . . . . . . . . . . . . . Retrieved Components . | . . . . . . . . . . . . . . . . . . . . . . . . . . . Parts Scanalyzed . | . . . . . . . . . . . . . . . . . . . . . . . . . . . Part Schematics Acquired . | . . . . . . . . . . . . . . . . . . . . . . . . . . . Parts Damaged . | . . . . . . . . . . . . . . . . . . . . . . . . . . . Bothacking | -11 -10 -10 -10 -9 -8 -7 -7 -7 -7 -6 -6 -5 -5 -5 -5 -5 -5 -5 -4 -4 -4 -4 -3 -3 -3 -3 ------------ Run | Yrd Mat Min Exi Min Mat Fac Low Low Dat Pro Fac Fac Was Fac Ext Cet Arc Hub Fac Upp Upp War Pro Res Qua Frg Used RIF Installer . | . . . . . . . . . . . . . . . . . . . . . . . . . . . Robots Hacked . | . . . . . . . . . . . . . . . . . . . . . . . . . . . Non-combat . | . . . . . . . . . . . . . . . . . . . . . . . . . . . Combat . | . . . . . . . . . . . . . . . . . . . . . . . . . . . Robot Hacks Applied . | . . . . . . . . . . . . . . . . . . . . . . . . . . . Relay Couplers Released . | . . . . . . . . . . . . . . . . . . . . . . . . . . . Fabnet Peak Effective % . | . . . . . . . . . . . . . . . . . . . . . . . . . . . Robots Rewired 15 | . . . . . . . . . . . . . . . 15 . . . . . . . . . . . Allies Hacked 1 | . . . . . . . . . . . . . . 1 . . . . . . . . . . . . Hacks Repelled . | . . . . . . . . . . . . . . . . . . . . . . . . . . . Allies | -11 -10 -10 -10 -9 -8 -7 -7 -7 -7 -6 -6 -5 -5 -5 -5 -5 -5 -5 -4 -4 -4 -4 -3 -3 -3 -3 -------- Run | Yrd Mat Min Exi Min Mat Fac Low Low Dat Pro Fac Fac Was Fac Ext Cet Arc Hub Fac Upp Upp War Pro Res Qua Frg Total Allies 54 | . . 1 . . . . . . . . . . 20 2 24 5 . . . . 2 . . . . . Largest Group 22 | . . 1 . . . . . . . . . . 20 20 22 22 21 19 . . 2 . . . . . Highest-Rated Group 1068 | . . 31 . . . . . . . . . . 657 657 745 1068 1048 882 . . 67 . . . . . Highest-Rated Ally 159 | . . 31 . . . . . . . . . . 50 50 159 159 143 96 . . 38 . . . . . Total Orders 4 | . . . . . . . . . . . . . . . . 1 2 1 . . . . . . . . STAY 3 | . . . . . . . . . . . . . . . . 1 1 1 . . . . . . . . FOLLOW 1 | . . . . . . . . . . . . . . . . . 1 . . . . . . . . . Ally Attacks 441 | . . 6 . . . . . . . . . . . 164 130 16 28 96 . . 1 . . . . . Total Damage 10083 | . . 63 . . . . . . . . . . . 3188 2846 427 774 2740 . . 45 . . . . . Kills 64 | . . 3 . . . . . . . . . . . 26 16 3 3 13 . . . . . . . . Allies Corrupted 7 | . . . . . . . . . . . . . . 1 . . . 6 . . . . . . . . Allies Melted . | . . . . . . . . . . . . . . . . . . . . . . . . . . . Intel | -11 -10 -10 -10 -9 -8 -7 -7 -7 -7 -6 -6 -5 -5 -5 -5 -5 -5 -5 -4 -4 -4 -4 -3 -3 -3 -3 ------- Run | Yrd Mat Min Exi Min Mat Fac Low Low Dat Pro Fac Fac Was Fac Ext Cet Arc Hub Fac Upp Upp War Pro Res Qua Frg Active Infowar (turns) 20405 | 24 991 . . . . 2709 507 620 111 817 3080 1045 354 1544 586 . 74 432 1012 833 512 914 858 750 1677 955 Optics 2217 | . . . . . . 2217 . . . . . . . . . . . . . . . . . . . . Sensors 14631 | . . . . . . 1187 507 620 110 810 2004 612 135 1544 72 . 74 414 842 832 462 468 803 645 1642 848 IFF 18 | . . . . . . . . . . . 18 . . . . . . . . . . . . . . . Seismic 1006 | 24 982 . . . . . . . . . . . . . . . . . . . . . . . . . T.N.C. 5164 | . . . . . . . . . . . 3079 1045 354 686 . . . . . . . . . . . . Machine Analysis 292 | . 9 . . . . . . . . . . 283 . . . . . . . . . . . . . . Jamming 10887 | . . . . . . 1692 . . 1 7 768 281 354 1532 585 . . 18 1005 833 512 914 858 748 35 744 Robot Analysis Total 1 | . 1 . . . . . . . . . . . . . . . . . . . . . . . . . Derelict Logs Recovered 5 | . . 1 . . . . . 1 . 1 . . . . . . . . . 2 . . . . . . Drone Launches . | . . . . . . . . . . . . . . . . . . . . . . . . . . . Drone Recoveries . | . . . . . . . . . . . . . . . . . . . . . . . . . . . Exploration | -11 -10 -10 -10 -9 -8 -7 -7 -7 -7 -6 -6 -5 -5 -5 -5 -5 -5 -5 -4 -4 -4 -4 -3 -3 -3 -3 ------------- Run | Yrd Mat Min Exi Min Mat Fac Low Low Dat Pro Fac Fac Was Fac Ext Cet Arc Hub Fac Upp Upp War Pro Res Qua Frg Turns Passed 26105 | 106 1305 1181 797 214 191 2711 545 655 111 817 3080 1045 354 1544 1386 384 540 518 1013 833 512 1098 858 869 2245 1193 Spaces Moved 15644 | 64 608 578 419 112 152 1635 393 395 86 512 1907 693 287 791 697 137 271 307 652 649 401 704 372 606 1421 795 Core 302 | 9 . . . . 75 . . . . . . . . . . . . . . . . . . . . 218 Treads 351 | . . 351 . . . . . . . . . . . . . . . . . . . . . . . . Legs 14113 | 55 608 227 419 112 77 757 393 395 86 512 1907 693 287 791 697 137 271 307 652 649 401 704 372 606 1421 577 Wheels 878 | . . . . . . 878 . . . . . . . . . . . . . . . . . . . . Hover . | . . . . . . . . . . . . . . . . . . . . . . . . . . . Flight . | . . . . . . . . . . . . . . . . . . . . . . . . . . . Fastest Speed 50 | 50 120 160 190 190 50 93 124 124 124 124 110 120 120 120 120 122 122 112 113 113 113 110 110 110 120 50 Average Speed 125 | 116 169 171 190 190 87 111 124 124 124 124 120 120 120 120 152 134 135 121 113 113 113 112 110 111 126 110 Slowest Speed 400 | 150 190 190 190 190 400 260 124 124 124 124 194 120 120 120 192 192 192 122 113 113 113 113 110 120 250 170 Overloaded Moves . | . . . . . . . . . . . . . . . . . . . . . . . . . . . Propulsion Burnouts . | . . . . . . . . . . . . . . . . . . . . . . . . . . . Robots Hopped . | . . . . . . . . . . . . . . . . . . . . . . . . . . . Potential Cave-ins . | . . . . . . . . . . . . . . . . . . . . . . . . . . . Cave-ins Triggered . | . . . . . . . . . . . . . . . . . . . . . . . . . . . Teleports 1 | . . . . . . . . . . . . . . . . . . . . . . . . . . 1 Exploration Rate (%) 51 | 4 82 68 88 22 20 29 50 53 69 60 52 13 95 23 85 71 94 22 16 63 54 60 49 16 90 29 Regions Visited 26 Branch Regions 17 Pre-discovered Areas 6 | . 2 1 1 . . . . 1 1 . . . . . . . . . . . . . . . . . Known Exits Taken 20 | . 1 . . . 1 1 1 1 1 1 1 . . 1 1 1 1 1 1 1 1 1 1 1 1 . Unknown Exits Taken 4 | 1 . 1 1 1 . . . . . . . . . . . . . . . . . . . . . . Scrap Searched 15 | . . 1 . . . . . 3 . 3 . . . . . . . . . 3 4 . 1 . . . Spaces Dug 385 | . . . . . 19 31 10 10 . 6 23 5 . . . . . 149 32 26 4 3 20 1 35 11 Terrain Destroyed 1103 | . . . . . 55 65 65 20 . 46 88 32 . . 4 18 18 345 58 74 26 8 38 15 53 75 Melee 9 | . . . . . . 3 . . . . 1 5 . . . . . . . . . . . . . . Projectile 455 | . . . . . . 23 17 20 . 14 64 . . . 4 . 18 40 51 51 9 5 38 15 53 33 AOE 639 | . . . . . 55 39 48 . . 32 23 27 . . . 18 . 305 7 23 17 3 . . . 42 Terrain Rammed . | . . . . . . . . . . . . . . . . . . . . . . . . . . . Walls Destroyed . | . . . . . . . . . . . . . . . . . . . . . . . . . . . Machines Disabled . | . . . . . . . . . . . . . . . . . . . . . . . . . . . Actions | -11 -10 -10 -10 -9 -8 -7 -7 -7 -7 -6 -6 -5 -5 -5 -5 -5 -5 -5 -4 -4 -4 -4 -3 -3 -3 -3 --------- Run | Yrd Mat Min Exi Min Mat Fac Low Low Dat Pro Fac Fac Was Fac Ext Cet Arc Hub Fac Upp Upp War Pro Res Qua Frg Total 20296 | 83 765 687 420 114 188 2217 415 502 90 660 2424 824 296 1345 958 329 378 399 808 692 436 960 764 746 1775 1021 Wait 2557 | . 49 20 . . 1 264 . 71 . 112 226 21 . 482 57 183 56 33 53 6 15 207 354 50 202 95 Move 15619 | 63 607 577 418 111 151 1634 392 394 85 511 1906 693 286 790 696 136 270 306 651 648 400 703 371 605 1420 795 Hop . | . . . . . . . . . . . . . . . . . . . . . . . . . . . Pick Up 149 | 8 11 11 2 1 3 25 1 . . 4 28 8 1 8 2 1 1 1 5 1 . 1 . 12 11 3 Fast Attach 151 | 7 7 1 . . 1 37 . 2 2 2 22 8 2 10 1 2 5 7 9 2 . 2 . 9 10 3 Attach 61 | . 2 2 . . 8 8 . . . . 10 4 . 3 2 . 2 2 5 1 . 2 . 2 2 6 Detach 25 | . . . . . . 7 . . . . 4 2 . 1 . . . 4 1 . . 1 . . 2 3 Swap 238 | . 5 6 . . 6 36 3 5 1 6 42 19 3 4 8 2 1 8 13 3 8 8 8 12 16 15 Drop 259 | . 15 15 . 1 2 46 . 2 2 7 39 18 4 19 7 1 7 10 11 3 1 3 . 20 23 3 Fire 1048 | 5 68 53 . 1 15 144 19 28 . 18 142 44 . 28 44 4 36 28 60 28 12 33 31 36 89 82 Melee 26 | . 1 . . . . 16 . . . . 2 7 . . . . . . . . . . . . . . Ram 1 | . . . . . 1 . . . . . . . . . . . . . . . . . . . . . Kick 6 | . . . . . . . . . . . 3 . . . 2 . . . . . . . . . . 1 Crush 1 | . . 1 . . . . . . . . . . . . . . . . . . . . . . . . Escape Stasis 25 | . . . . . . . . . . . . . . . 10 . . . . . . . . . . 15 Rewire 129 | . . . . . . . . . . . . . . . 129 . . . . . . . . . . . Trap 1 | . . 1 . . . . . . . . . . . . . . . . . . . . . . . . Miscellaneous . | . . . . . . . . . . . . . . . . . . . . . . . . . . . Route ------- -11/Scrapyard -10/Materials (discovered 4 exits: [*Mat x2] / *Min x2) -10/Mines (discovered 3 exits: [*Mat x2] / *Exi) -10/Exiles -9/Mines -8/Materials -7/Factory -7/Lower Caves -7/Lower Caves (discovered 2 exits: *Fac / *Dat) -7/Data Miner -6/Proximity Caves -6/Factory (discovered 3 exits: *Fac / *Low x2) -5/Factory (discovered 4 exits: Upp x2 / Ext x2) -5/Waste -5/Factory (discovered 5 exits: *Fac / Upp x2 / *Ext x2) -5/Extension (discovered 2 exits: *Fac / *Cet) -5/Cetus -5/Archives (discovered 3 exits: *Fac / *Hub x2) -5/Hub_04(d) -4/Factory (discovered 2 exits: *Upp x2) -4/Upper Caves -4/Upper Caves (discovered 2 exits: *Res / *War) -4/Warlord -3/Proximity Caves -3/Research -3/Quarantine (discovered 3 exits: *Res / *Sec / *Frg) -3/Protoforge (discovered 1 exit: Res) History --------- Turn | Location | Event 16 | -11/Scrapyard | Discovered new exit (range 15) 107 | -11/Scrapyard | Entered Materials 309 | -10/Materials | Build established: Mutant 356 | -10/Materials | Discovered new exit (range 6) 660 | -10/Materials | Discovered new exit (range 7) 785 | -10/Materials | Central database locked down 896 | -10/Materials | Discovered new exit (range 15) 934 | -10/Materials | Discovered new exit (range 15) 947 | -10/Materials | Identified exit to Mines 1159 | -10/Materials | Build established: Scavenger-Mutant 1412 | -10/Materials | Entered Mines 1466 | -10/Mines | Found a damaged Exp. Sensor Array with a note attached 1470 | -10/Mines | Found Prototype Device 1545 | -10/Mines | Found a hidden stash of uninstalled traps 1668 | -10/Mines | Escorted by a lone wolf Derelict 1709 | -10/Mines | Discovered new exit (range 10) 1876 | -10/Mines | Build established: Mutant 2247 | -10/Mines | Core integrity fell below 50% 2339 | -10/Mines | Joined a pair of Derelicts in attacking an 0b10 outpost 2439 | -10/Mines | Learned 2 Materials zone layouts 2467 | -10/Mines | Discovered new exit (range 11) 2579 | -10/Mines | Build established: Scavenger-Mutant 2584 | -10/Mines | Deemed a non-threat by the Exiles lab entrance 2584 | -10/Mines | Discovered new exit (range 5) 2593 | -10/Mines | Entered Exiles 2644 | -10/Exiles | Met 8R-AWN 2698 | -10/Exiles | Met EX-HEX 2821 | -10/Exiles | Visited The Gauntlet 3017 | -10/Exiles | Met EX-DEC 3065 | -10/Exiles | Learned location of Zion (-6) 3131 | -10/Exiles | Met EX-BIN 3369 | -10/Exiles | Discovered new exit (range 10) 3390 | -10/Exiles | Entered Mines 3440 | -9/Mines | Received a Rocket Launcher from a helpful Derelict 3561 | -9/Mines | Discovered new exit (range 4) 3604 | -9/Mines | Entered Materials 3604 | -8/Materials | Evolved 4 slots: Propulsion x2, Utility x2 3605 | -8/Materials | Identified exit to Factory 3612 | -8/Materials | Garrison activated, responded to threat 3754 | -8/Materials | Released all parts (3) 3768 | -8/Materials | Destroyed 8 combat bots 3780 | -8/Materials | Lost 11 parts (1p4n2u4w) 3795 | -8/Materials | Entered Factory 3795 | -7/Factory | Evolved 2 slots: Propulsion x1, Utility x1 3810 | -7/Factory | Discovered new exit (range 15) 4019 | -7/Factory | Build established: Mutant 4189 | -7/Factory | Repaired Minigun 4439 | -7/Factory | Build established: Scavenger-Mutant 5352 | -7/Factory | System corruption reached 10% 5440 | -7/Factory | Build established: Mutant 6334 | -7/Factory | Identified Exp. Sensor Array 6505 | -7/Factory | Identified exit to Lower Caves 6506 | -7/Factory | Entered Lower Caves 6507 | -7/Lower Caves | Encountered a Warlord checkpoint 7010 | -7/Lower Caves | Discovered new exit (range 15) 7045 | -7/Lower Caves | Identified exit to Lower Caves 7051 | -7/Lower Caves | Entered another Lower Caves area 7068 | -7/Lower Caves | Discovered new exit (range 9) 7530 | -7/Lower Caves | Discovered new exit (range 15) 7619 | -7/Lower Caves | Identified exit to Data Miner 7706 | -7/Lower Caves | Entered Data Miner 7706 | -7/Data Miner | Discovered new exit (range 6) 7731 | -7/Data Miner | Met Data Miner 7753 | -7/Data Miner | Learned location of Section 7 (-3) 7753 | -7/Data Miner | Acquired the access code to Warlord's prototype stash 7784 | -7/Data Miner | Received God Mode back door access code from Data Miner 7815 | -7/Data Miner | Identified exit to Proximity Caves 7817 | -7/Data Miner | Entered Proximity Caves 7903 | -6/Proximity Caves | Learned location of 1 exit from Lower Caves 8602 | -6/Proximity Caves | Discovered new exit (range 5) 8633 | -6/Proximity Caves | Identified exit to Factory 8634 | -6/Proximity Caves | Entered Factory 8634 | -6/Factory | Evolved 2 slots: Power x1, Utility x1 8838 | -6/Factory | Repaired Imp. Titanium Leg 8866 | -6/Factory | Fabricated Particle Reactor? 8930 | -6/Factory | Build established: Skirmisher 9057 | -6/Factory | Discovered new exit (range 3) 9059 | -6/Factory | Identified exit to Lower Caves 11027 | -6/Factory | Spotted B-75 Beast 11156 | -6/Factory | System corruption reached 10% 11171 | -6/Factory | Build established: Mutant 11560 | -6/Factory | Build established: Skirmisher 11659 | -6/Factory | Discovered new exit (range 11) 11669 | -6/Factory | Identified exit to Factory 11714 | -6/Factory | Entered another Factory area 11714 | -5/Factory | Evolved 2 slots: Utility x1, Weapon x1 11937 | -5/Factory | Repaired Broken Exp. Sensor Array 12260 | -5/Factory | Identified exit to Upper Caves 12260 | -5/Factory | Identified exit to Extension 12759 | -5/Factory | Sucked down chute 12759 | -5/Factory | Entered Waste 12760 | -5/Waste | Joined by Warlord forces that had cleared the area 12774 | -5/Waste | Found Gamma Bomb Array 12966 | -5/Waste | Build established: Scavenger-Gunner 12984 | -5/Waste | Discovered new exit (range 12) 13088 | -5/Waste | Identified exit to Factory 13113 | -5/Waste | Entered Factory 13113 | -5/Factory | Accompanied by 20 allies 13142 | -5/Factory | Discovered new exit (range 7) 13151 | -5/Factory | Identified exit to Factory 13264 | -5/Factory | Lost 4 allies 13613 | -5/Factory | Build established: Skirmisher 13823 | -5/Factory | Lost 4 allies 14101 | -5/Factory | Build established: Gunner 14199 | -5/Factory | Fabricated Y-54 Guardian? 14657 | -5/Factory | Entered Extension 14657 | -5/Extension | Accompanied by 6 allies 14876 | -5/Extension | Rescued a captive Derelict 14877 | -5/Extension | Rescued a captive Derelict 14940 | -5/Extension | Rescued a captive Derelict 14944 | -5/Extension | Rescued a captive Derelict 15026 | -5/Extension | Rescued a captive Derelict 15036 | -5/Extension | Rescued a captive Derelict 15040 | -5/Extension | Rescued a captive Derelict 15050 | -5/Extension | Rescued a captive Derelict 15066 | -5/Extension | Build established: Commander-Gunner 15342 | -5/Extension | Spotted B-75 Beast 15355 | -5/Extension | Allies destroyed B-75 Beast 15360 | -5/Extension | Spotted B-75 Beast 15383 | -5/Extension | Allies destroyed B-75 Beast 15413 | -5/Extension | Lost 3 allies 15651 | -5/Extension | Rescued A7 15882 | -5/Extension | Disrupted transfer network 15978 | -5/Extension | Discovered exit to Factory (range 10) 15980 | -5/Extension | Discovered new exit (range 6) 15989 | -5/Extension | Identified exit to Cetus 16043 | -5/Extension | Disrupted transfer network 16043 | -5/Extension | Entered Cetus 16043 | -5/Cetus | Accompanied by 18 allies (A7) 16048 | -5/Cetus | Acquired a Cetus Manufacturing Module code from A7 16069 | -5/Cetus | Spotted Cetus Guard 16069 | -5/Cetus | Spotted Cetus Guard 16071 | -5/Cetus | Spotted Cetus Guard 16071 | -5/Cetus | Spotted Cetus Guard 16073 | -5/Cetus | Allies destroyed Cetus Guard 16075 | -5/Cetus | Destroyed Cetus Guard 16078 | -5/Cetus | Allies destroyed Cetus Guard 16085 | -5/Cetus | Allies destroyed Cetus Guard 16142 | -5/Cetus | Started Cetus Manufacturing Module 16152 | -5/Cetus | Escorted A7 to Cetus Mainframe 16167 | -5/Cetus | Manufactured an Enhanced Grunt 16192 | -5/Cetus | Manufactured an Enhanced Grunt 16217 | -5/Cetus | Manufactured an Enhanced Grunt 16223 | -5/Cetus | Discovered new exit (range 15) 16242 | -5/Cetus | Manufactured an Enhanced Grunt 16267 | -5/Cetus | Manufactured an Enhanced Grunt 16331 | -5/Cetus | Identified exit to Archives 16415 | -5/Cetus | Build established: Commander-Tank 16427 | -5/Cetus | Entered Archives 16427 | -5/Archives | Accompanied by 21 allies (A7) 16432 | -5/Archives | Received a hacking code to weaken MAIN.C 16489 | -5/Archives | Discovered new exit (range 16) 16515 | -5/Archives | Discovered new exit (range 15) 16555 | -5/Archives | Discovered exit to Factory (range 16) 16914 | -5/Archives | Identified exit to Hub_04(d) 16953 | -5/Archives | Build established: Commander-Gunner 16967 | -5/Archives | Entered Hub_04(d) 16967 | -5/Hub_04(d) | Accompanied by 19 allies 17263 | -5/Hub_04(d) | Discovered exit to Factory (range 9) 17386 | -5/Hub_04(d) | Network Hub disabled 17387 | -5/Hub_04(d) | Disrupted transfer network 17399 | -5/Hub_04(d) | Spotted Lightning 17400 | -5/Hub_04(d) | Spotted Lightning 17409 | -5/Hub_04(d) | Spotted Lightning 17415 | -5/Hub_04(d) | Destroyed Lightning 17420 | -5/Hub_04(d) | Allies destroyed Lightning 17424 | -5/Hub_04(d) | Found Prototype Processor 17424 | -5/Hub_04(d) | Identified Exp. Targeting Computer 17435 | -5/Hub_04(d) | Destroyed Lightning 17441 | -5/Hub_04(d) | Found Prototype Device 17441 | -5/Hub_04(d) | Identified Exp. EM Shield 17462 | -5/Hub_04(d) | Lost 12 allies 17469 | -5/Hub_04(d) | Spotted Lightning 17471 | -5/Hub_04(d) | Spotted Lightning 17478 | -5/Hub_04(d) | Spotted Lightning 17482 | -5/Hub_04(d) | Network Hub disabled 17485 | -5/Hub_04(d) | Entered Factory 17485 | -4/Factory | Evolved 2 slots: Propulsion x1, Utility x1 17515 | -4/Factory | Lost 5 allies 17538 | -4/Factory | Identified exit to Upper Caves 17734 | -4/Factory | Build established: Scavenger-Gunner 17976 | -4/Factory | Found Prototype Processor 17976 | -4/Factory | Identified Exp. Signal Interpreter 18116 | -4/Factory | Found Prototype Processor 18116 | -4/Factory | Identified Exp. Melee Analysis Suite 18498 | -4/Factory | Entered Upper Caves 18789 | -4/Upper Caves | Learned Research emergency access door positions 18977 | -4/Upper Caves | Learned Research trap positions 19265 | -4/Upper Caves | Discovered new exit (range 14) 19267 | -4/Upper Caves | Encountered a Warlord checkpoint 19315 | -4/Upper Caves | Identified exit to Upper Caves 19331 | -4/Upper Caves | Entered another Upper Caves area 19333 | -4/Upper Caves | Attracted the attention of an 0b10 checkpoint 19378 | -4/Upper Caves | Discovered new exit (range 11) 19444 | -4/Upper Caves | Entered an active Warlord outpost 19449 | -4/Upper Caves | A Commander dispatched an escort 19460 | -4/Upper Caves | Learned Factory trap positions 19480 | -4/Upper Caves | Destroyed 4L-K3U(g) 19824 | -4/Upper Caves | Discovered new exit (range 14) 19842 | -4/Upper Caves | Identified exit to Warlord 19843 | -4/Upper Caves | Entered Warlord 19843 | -4/Warlord | Accompanied by 1 ally 19844 | -4/Warlord | Commander's escort returned to base 19882 | -4/Warlord | System corruption cleaned by Quarantine Array 20093 | -4/Warlord | Warlord's base attacked by MAIN.C 20116 | -4/Warlord | Met Warlord 20375 | -4/Warlord | Spotted B-86 Titan 20440 | -4/Warlord | Spotted B-90 Cyclops 20443 | -4/Warlord | Warlord forces counterattacked 20613 | -4/Warlord | Lost 4 allies 20627 | -4/Warlord | Spotted Striker 20665 | -4/Warlord | Spotted Striker 20699 | -4/Warlord | Spotted Executioner 20748 | -4/Warlord | Found Prototype Device 20748 | -4/Warlord | Identified Adv. Kinecellerator 20753 | -4/Warlord | Spotted Executioner 20768 | -4/Warlord | Warlord base infiltrated, sounded retreat 20858 | -4/Warlord | Found Exp. Targeting Computer 20913 | -4/Warlord | Spotted Striker 20925 | -4/Warlord | Discovered new exit (range 15) 20940 | -4/Warlord | Identified exit to Proximity Caves 20941 | -4/Warlord | Entered Proximity Caves 20948 | -3/Proximity Caves | Lost 5 allies 21790 | -3/Proximity Caves | Discovered new exit (range 7) 21795 | -3/Proximity Caves | Identified exit to Research 21799 | -3/Proximity Caves | Entered Research 21799 | -3/Research | Evolved 2 slots: Utility x2 21800 | -3/Research | Loaded intel: 86 trap records 22387 | -3/Research | Found Gamma Bomb Array 22497 | -3/Research | Discovered new exit (range 7) 22531 | -3/Research | Identified exit to Quarantine 22565 | -3/Research | Cargo convoy interrupted 22584 | -3/Research | Incoming assault squad redirected 22624 | -3/Research | Found PL-3XN's Ring of Power 22668 | -3/Research | Entered Quarantine 22787 | -3/Quarantine | Found Alien Artifact 22850 | -3/Quarantine | Found Alien Artifact 22895 | -3/Quarantine | Build established: Gunner 23340 | -3/Quarantine | Found Alien Energy Cannon 23340 | -3/Quarantine | Identified Core Cannon 23633 | -3/Quarantine | Discovered new exit (range 12) 23703 | -3/Quarantine | Spotted Alpha 7 23729 | -3/Quarantine | Destroyed Alpha 7 23771 | -3/Quarantine | Found Alien Launcher 24018 | -3/Quarantine | Identified Transdimensional Reconstructor 24018 | -3/Quarantine | Identified Core Reset Matrix 24277 | -3/Quarantine | Found Alien Artifact 24283 | -3/Quarantine | Found Alien Artifact 24388 | -3/Quarantine | Identified Hpw. Transdimensional Reconstructor 24560 | -3/Quarantine | Found Alien Artifact 24740 | -3/Quarantine | Identified exit to Research 24751 | -3/Quarantine | Build established: Scavenger-Gunner 24804 | -3/Quarantine | Spotted Fortress 24900 | -3/Quarantine | Discovered new exit (range 6) 24900 | -3/Quarantine | Discovered new exit (range 6) 24908 | -3/Quarantine | Identified exit to Section 7 24911 | -3/Quarantine | Identified exit to Protoforge 24913 | -3/Quarantine | Entered Protoforge 25079 | -3/Protoforge | Build established: Gunner 25589 | -3/Protoforge | Superfortress began startup sequence 25651 | -3/Protoforge | Spotted Immortal 25651 | -3/Protoforge | Spotted Immortal 25677 | -3/Protoforge | Spotted Immortal 25696 | -3/Protoforge | Spotted Hotshot 25697 | -3/Protoforge | Spotted Hotshot 25721 | -3/Protoforge | Destroyed Immortal 25723 | -3/Protoforge | Destroyed Immortal 25723 | -3/Protoforge | Destroyed Hotshot 25740 | -3/Protoforge | Destroyed Immortal 25779 | -3/Protoforge | Incoming investigation squad redirected 25892 | -3/Protoforge | Spotted AP7-3 25899 | -3/Protoforge | Spotted AP7-3 25964 | -3/Protoforge | Warped through subspace 25965 | -3/Protoforge | Core integrity fell below 50% 25968 | -3/Protoforge | Released all parts (9) 25990 | -3/Protoforge | Lost 7 parts (2p2n2u1w) 26078 | -3/Protoforge | Spotted Hotshot 26078 | -3/Protoforge | Spotted Hotshot 26078 | -3/Protoforge | Spotted Hotshot 26078 | -3/Protoforge | Spotted Hotshot 26081 | -3/Protoforge | Spotted Overlord 26082 | -3/Protoforge | Spotted B-86 Titan 26097 | -3/Protoforge | Core integrity fell below 20% 26103 | -3/Protoforge | Incoming investigation squad redirected 26104 | -3/Protoforge | Spotted EXE-6 26104 | -3/Protoforge | Spotted EXE-6 26104 | -3/Protoforge | Spotted Decapitator 26104 | -3/Protoforge | Spotted Decapitator 26106 | -3/Protoforge | Destroyed by AP7-3 with Heavy Quantum Rifle Last Messages --------------- Found 7 traps in 2 arrays: 6x Blade Trap 1x Alarm Trap Map updated. 26083_ ALERT: Suspicious activity at Terminal F016. Dispatching Investigation squad. 26085_ Connecting with Terminal... >>Access(Main) Found 1 level access point to Research: (12,141) Map updated. 26086_ Terminal disabled. 26086_ Adv. Datajack destroyed. 26091_ Acquired 42 matter. 26091_ W-44 Eye sends out distress signal. 26093_ System corrupted: Matter fused (-10). 26093_ Penetrated by Slug. 26103_ ALERT: Higher priority target reported, redirecting investigation. 26105_ Decapitator springs to life. 26105_ Knocked back. Map ----- +----------------------------------------------------+ | ?????????????????????????????????????????????????? | | ?????????????????????????????????????????????????? | | ?????????????????????????????????????????????????? | | ?????????????????????????????????????????????????? | | ?????????????????????????????????????????????????? | | ?????????????????????????????????????????????????? | | ?????????????????????????????????????????????????? | | ?????????????????????????????????????????????????? | | ?????????????????????????????????????????????????? | | #######??????????????????????????????????????????? | | #???????????????? """"?????????????????????? | | ?????????????? ???????????????????? | | " #??#########???# "" ????????????????? | | " #?? #???# " ??????????????? | | ## """ #???# " ""??????????????? | | " # """" #???# """"" " ??????????????? | | + "" " #???# "" "" m "???????????????? | | T # """ #???# "" " ????????????????? | | ## % # " " #???# "" " ?????????????? | | ?# #? #???# "" " "????????????? | | ?# #? #???# " """??????????? | | ## ##?##########?# "? """"?????????? | | # ###"#;#### ### ""? " " """""????????? | | # T % / " "" """"""???????? | | # "" m 7 """ " """""""??????? | | " % /7w ""@ """"" " """"""""?????? | | # ###/###### ### "" " """""""""????? | | ###/#### % #??###?# " """"""""????? | | % " #??????# """"""""""??? | | " " #??????# """"""" "" """"""""""??? | | """ #! #??????# """ " " """"""""""?? | | "" # #??????# " " """""""""?? | | % # #??????# "" """""""""? | | % # #??????# "" m "" """"""""? | | "" # #??????# "" " " """""""? | | """ # #??????# "" " "" """"""" | | ######??????# " " """" | | ########???????????# " """ | | ######?????????????# " " " " """"" | | ##????????????# " """ | | ??????????# "" " | | ??????????# " " "" " """ """ | | ??????????# " " """" " | | ##????????????# "" " " """ " " | | ##+### ????????????# "" "" " " " ? | | # ????????????# " "" " ? | | """" # ????????????# "" "" " """"" ""? | | """" # ????????????# ?" " " " "?? | | """" # ????????????? "" "" ?? | | """" # ?????????????? ? " "" ??? | +----------------------------------------------------+ Best States ------------- Heat Dissipation 72 Energy Generation 47 Energy Capacity 1060 Matter Stores 300 Matter Capacity 300 Sight Range 18 Robot Scan Range 20 Terrain Scan Density 10 Jamming Range 14 Corruption Block 20 Armor Coverage 600 Resistance: KI 30 Resistance: EM 75 Utility Shielding 66 Weapon Cycling 20 Evasion (%) 82 Targeting Accuracy 24 Target Analysis 8 Core Analysis 6 Recoil Reduction 6 Matter Filtering 50 Kinecelleration 50 Offensive Hacking 11 Defensive Hacking 12 Item Schematics ----------------- Tesla Rifle | -7/Data Miner | Free Adv. Field Recycling Unit | -7/Data Miner | Free Hvy. Treads | -7/Data Miner | Free Imp. Lightning Gun | -7/Data Miner | Free Exp. Weapon Shielding | -7/Data Miner | Free Cld. Cesium-ion Thruster | -7/Data Miner | Free Lgt. Regenerative Plating | -7/Data Miner | Free Combat Drone Bay | -7/Data Miner | Free Robot Schematics ------------------ A-15 Conveyor | -7/Data Miner | Free M-22 Extractor | -7/Data Miner | Free M-28 Smith | -7/Data Miner | Free B-48 Gladiator | -7/Data Miner | Free Y-54 Guardian | -7/Data Miner | Free Fabricated ------------ Particle Reactor | x2 | -6/Factory | Preloaded Y-54 Guardian | x2 | -5/Factory Repaired ---------- Minigun | 7% | -7/Factory Imp. Titanium Leg | 39% | -6/Factory Exp. Sensor Array | 62% | -5/Factory | Broken Alien Tech Used ----------------- Core Cannon High-powered Transdimensional Reconstructor Achievements -------------- None Challenges ------------ None Game ------ Seed ActiveSwarmBoregun Manual? 0 Play Time 03:43:40 Cumulative 707.8 hours Start 2025.08.26 @ 20:55:25 End 2025.08.28 @ 21:47:13 Sessions 5 Manual Loads 0 Difficulty Rogue Special Mode None Game No. 446 Rogue 446 Adventurer 0 Explorer 0 Win Type - Total 9 Types 6/0/1/1/1/0/0/0/0/0 Lore% 73 Gallery% 77 Achievement% 75 Wizard Run 0 Options --------- Layout 0 ASCII 0 Keyboard 0 Movement Mouse Keybinds 1 Fullscreen 2 Font 24/Smallcaps Map View 76x50 Zoom Use 0% Tactical HUD 1 Map Filters NONE Filters NONE Steam 1 RUN: 44f2c923-80dd-4f92-a9aa-af41bcfcabaa